Cogmind - Beta 13 @@@ ROGUE MODE // 2024.04.13 @ 17:53:01 Player: DCS-TF2 Result: Destroyed by 45-6NO(R) with Subdweller Laser Performance ------------- Evolutions (0) 0 Regions Visited (2) 400 Robots Destroyed (18) 90 Value Destroyed (389) 389 Prototype IDs (0) 0 Alien Tech Used (0) 0 Bonus (0) 0 TOTAL SCORE: 879 Bonus ------- None Cogmind --------- Core Integrity 0/250 Matter 225/300 Energy 100/100 System Corruption 0% Temperature Cool (6) Movement Treading (160) Location -10/Subcaves Parts ------- > --- POWER (1) -------- (None) > --- PROPULSION (2) --- Light Treads Light Treads > --- UTILITY (2) ------ Large Storage Unit > --- WEAPON (2) ------- Light Assault Rifle Light Assault Rifle > --- INVENTORY (15) --- Ion Engine High-capacity Matter Pod (151) Light Assault Rifle Mining Laser Peak State ------------ > --- POWER ------------ Ion Engine > --- PROPULSION ------- Compact Wheel Compact Wheel > --- UTILITY ---------- Small Storage Unit Improved Terrain Scanner > --- WEAPON ----------- Light Assault Rifle Light Assault Rifle > --- INVENTORY -------- Light Treads Light Treads Light Assault Rifle [Rating: 9] Favorites ----------- Power Ion Engine Engine Ion Engine Propulsion Wheel Treads Light Treads Wheel Wheel Utility Large Storage Unit Device Structural Scanner Storage Large Storage Unit Weapon Light Assault Rifle Energy Cannon Beam Cannon Ballistic Gun Light Assault Rifle Special Weapon Mining Laser Build | -11 -10 -10 ------- Run | Yrd Mat Sub Slots Evolved . | . . . Power . | . . . Propulsion . | . . . Utility . | . . . Weapon . | . . . Parts Attached 25 | 7 17 1 Power 2 | 1 1 . Engine 2 | 1 1 . Core . | . . . Reactor . | . . . Propulsion 9 | 2 7 . Treads 2 | . 2 . Leg . | . . . Wheel 7 | 2 5 . Hover . | . . . Flight . | . . . Utility 6 | 2 4 . Device 3 | 1 2 . Storage 3 | 1 2 . Processor . | . . . Hackware . | . . . Protection . | . . . Artifact . | . . . Weapon 8 | 2 5 1 Energy Gun . | . . . Energy Cannon 1 | . 1 . Ballistic Gun 6 | 2 3 1 Ballistic Cannon . | . . . Launcher . | . . . Special Weapon 1 | . 1 . Impact Weapon . | . . . Slashing Weapon . | . . . Piercing Weapon . | . . . Special Melee Weapon . | . . . Unidentified Prototypes . | . . . Parts Lost 7 | . 4 3 Power 1 | . . 1 Propulsion 3 | . 3 . Utility 2 | . 1 1 Weapon 1 | . . 1 Highest Loss Streak 3 | . 3 3 To Critical Strikes . | . . . Average Slot Usage (%) 98 | . 98 96 Engine 13 | . 14 12 Treads 7 | . . 28 Wheel 20 | . 26 . Device 13 | . 13 12 Storage 14 | . 14 14 Ballistic Gun 26 | . 26 27 Naked Turns . | . . . Heaviest Build 30 | 13 30 28 Greatest Support 40 | 32 40 40 Greatest Overweight (x) 2 | . 2 . Average Overweight (x) . | . . . Largest Inventory Capacity 15 | 8 15 15 Average Capacity 13 | 6 13 15 Most Carried 11 | 4 11 5 Average Carried 6 | 1 7 4 Final Capacity 15 | 8 15 15 Final Carried 5 | 4 5 4 Class Distribution -------------------- 100% | Mutant Dominant Class ---------------- Mutant | -10/Materials Mutant | -10/Subcaves Resources | -11 -10 -10 ----------- Run | Yrd Mat Sub Matter Collected 633 | 195 438 . Remotely . | . . . Salvage Created 548 | 30 482 36 Parts 47 | 4 40 3 Haulers Intercepted . | . . . Recyclers Shooed 1 | . 1 . Parts Field Recycled . | . . . Retrieved Matter . | . . . Parts Self-Destructed 12 | . . 12 Prevented . | . . . Kills | -11 -10 -10 ------- Run | Yrd Mat Sub Combat Hostiles Destroyed 14 | . 13 1 Guns 11 | . 10 1 Cannons 3 | . 3 . Classes Destroyed 6 | 1 4 1 Worker 2 | . 2 . Builder 1 | . 1 . Tunneler 1 | 1 . . Swarmer 5 | . 5 . Grunt 8 | . 8 . Subdweller 1 | . . 1 Best Kill Streak 3 | 1 3 1 Combat Bots Only 3 | . 3 1 Max Kills in Single Turn 1 | 1 1 1 Gunslinging . | . . . Exploded . | . . . Melee . | . . . Uniques/NPCs Destroyed . | . . . Combat | -11 -10 -10 -------- Run | Yrd Mat Sub Hostile Shots Fired 113 | . 80 33 Missed 28 | . 19 9 Damage Taken 1169 | . 656 513 Core 265 | . 181 84 Absorbed by Shields . | . . . Core Remaining (%) 100 | 100 . . Volleys Fired 80 | 7 58 15 Largest 2 | 2 2 2 Hottest 120 | 40 120 40 Shots Fired 155 | 14 114 27 Gun 142 | 14 101 27 Cannon 11 | . 11 . Launcher . | . . . Special 2 | . 2 . Kinetic 142 | 14 101 27 Thermal 13 | . 13 . Explosive . | . . . Electromagnetic . | . . . Robot Hit Streak 10 | 6 10 9 Robot Miss Streak 5 | 1 5 1 Penetration Max . | . . . Secondary Targets 1 | . 1 . Max Gunslinging Chain 1 | . 1 . Shots Hit Robots 96 | 11 62 23 Core Hits 36 | 3 29 4 Critical Kills . | . . . Critical Parts Destroyed . | . . . Critical Strikes 1 | . . 1 Destroy 1 | . . 1 Melee Attacks . | . . . Impact . | . . . Slashing . | . . . Piercing . | . . . Sneak Attacks . | . . . Combat Hostiles . | . . . Follow-up Attacks . | . . . Damage Inflicted 886 | 93 602 191 Guns 746 | 93 462 191 Cannons 140 | . 140 . Explosions . | . . . Melee . | . . . Ramming . | . . . Kinetic 746 | 93 462 191 Thermal 140 | . 140 . Explosive . | . . . Electromagnetic . | . . . Impact . | . . . Slashing . | . . . Piercing . | . . . Highest Corruption . | . . . Average Corruption . | . . . Corruption Purged . | . . . Corruption Blocked . | . . . Overload Shots . | . . . Overflow Damage . | . . . Projectiles . | . . . Explosions . | . . . Melee . | . . . Knockbacks . | . . . Impact . | . . . Kinetic . | . . . Secondary . | . . . Self-Inflicted Damage . | . . . Shots . | . . . Rammed . | . . . Targets Rammed . | . . . Kicked . | . . . Crushed . | . . . Highest Temperature 312 | . 312 . Average Temperature 80 | . 80 . Received Heat Transfer 387 | . 297 90 Siege Activations . | . . . Robots Corrupted . | . . . Combat Hostiles . | . . . Parts Fried . | . . . Impact Corruptions . | . . . Robots Melted . | . . . Combat Hostiles . | . . . Parts Melted . | . . . Heat Transferred 296 | . 296 . Parts Sabotaged . | . . . Parts Stolen . | . . . Parts Stripped . | . . . Power Chain Reactions . | . . . Alert | -11 -10 -10 ------- Run | Yrd Mat Sub Peak Influence 187 | 5 187 . Initial 3 | . 3 . Average 48 | 1 52 . Maximum Alert Level . | . . . Low Security (%) 100 | 100 100 . Level 1 . | . . . Level 2 . | . . . Level 3 . | . . . Level 4 . | . . . Level 5 . | . . . High Security . | . . . Max Security . | . . . Squads Dispatched 2 | . 2 . Investigation 1 | . 1 . Extermination . | . . . Reinforcement 1 | . 1 . Assault . | . . . Garrison . | . . . Intercept . | . . . Searches Triggered . | . . . Construction Impeded . | . . . Haulers Reinforced . | . . . Active Scanning Responses . | . . . Cargo Convoy Interrupts . | . . . Stealth | -11 -10 -10 --------- Run | Yrd Mat Sub Distress Signals 1 | . 1 . Communications Jammed . | . . . Distress Signals . | . . . Times Spotted 21 | . 19 2 Peak Tracking Total 4 | . 4 2 Tactical Retreats 1 | . 1 . Traps | -11 -10 -10 ------- Run | Yrd Mat Sub Traps Triggered 1 | . 1 . Indirectly . | . . . Trap Hack Attempts . | . . . Triggered . | . . . Disarmed . | . . . Reprogrammed . | . . . Reused . | . . . Traps Extracted . | . . . Installed . | . . . Triggered . | . . . Machines | -11 -10 -10 ---------- Run | Yrd Mat Sub Machines Disabled . | . . . Max in Single Turn . | . . . Machines Repaired . | . . . Machines Dismantled . | . . . Machines Sabotaged . | . . . Overloaded Fab Kills . | . . . Hacking | -11 -10 -10 --------- Run | Yrd Mat Sub Machines Accessed 2 | . 2 . Terminals 2 | . 2 . Fabricators . | . . . Repair Stations . | . . . Recycling Units . | . . . Scanalyzers . | . . . Garrison Access . | . . . Total Hacks 7 | . 7 . Successful 2 | . 2 . Failed 5 | . 5 . Catastrophic . | . . . Database Lockouts . | . . . Manual 5 | . 5 . Terminals 7 | . 7 . Fabricators . | . . . Repair Stations . | . . . Recycling Units . | . . . Scanalyzers . | . . . Garrison Access . | . . . Terminal Hacks 1 | . 1 . Zone Layout 1 | . 1 . Fabricator Hacks . | . . . Repair Station Hacks . | . . . Recycling Unit Hacks . | . . . Scanalyzer . | . . . Garrison Access Hacks . | . . . Unauthorized Hacks 1 | . 1 . Terminals 1 | . 1 . Botnet 1 | . 1 . Fabricators . | . . . Repair Stations . | . . . Recycling Units . | . . . Scanalyzers . | . . . Garrison Access . | . . . Data Cores Recovered . | . . . Used . | . . . Hacking Detections 1 | . 1 . Full Trace Events 1 | . 1 . Feedback Events . | . . . Feedback Blocked . | . . . Robot Schematics Acquired . | . . . Robots Built . | . . . Authchips . | . . . Time . | . . . Total Robot Build Rating . | . . . Part Schematics Acquired . | . . . Parts Built . | . . . Authchips . | . . . Time . | . . . Total Part Build Rating . | . . . Parts Repaired . | . . . Time . | . . . Parts Recycled . | . . . Recycled Matter . | . . . Retrieved Matter . | . . . Retrieved Components . | . . . Parts Scanalyzed . | . . . Part Schematics Acquired . | . . . Parts Damaged . | . . . Bothacking | -11 -10 -10 ------------ Run | Yrd Mat Sub Used RIF Installer . | . . . Robots Hacked . | . . . Non-combat . | . . . Combat . | . . . Robot Hacks Applied . | . . . Relay Couplers Released . | . . . Fabnet Peak Effective % . | . . . Robots Rewired . | . . . Allies Hacked . | . . . Hacks Repelled . | . . . Allies | -11 -10 -10 -------- Run | Yrd Mat Sub Total Allies . | . . . Largest Group . | . . . Highest-Rated Group . | . . . Highest-Rated Ally . | . . . Total Orders . | . . . Ally Attacks . | . . . Total Damage . | . . . Kills . | . . . Allies Corrupted . | . . . Allies Melted . | . . . Intel | -11 -10 -10 ------- Run | Yrd Mat Sub Robot Analysis Total . | . . . Derelict Logs Recovered . | . . . Drone Launches . | . . . Drone Recoveries . | . . . Exploration | -11 -10 -10 ------------- Run | Yrd Mat Sub Turns Passed 1265 | 89 906 270 Spaces Moved 583 | 59 495 29 Core 11 | 11 . . Treads 44 | . 15 29 Legs . | . . . Wheels 528 | 48 480 . Hover . | . . . Flight . | . . . Fastest Speed 50 | 50 90 160 Average Speed 101 | 90 99 160 Slowest Speed 160 | 100 160 160 Overloaded Moves . | . . . Propulsion Burnouts . | . . . Robots Hopped . | . . . Cave-ins Triggered . | . . . Exploration Rate (%) 20 | 5 54 2 Regions Visited 2 Branch Regions 1 Pre-discovered Areas . | . . . Known Exits Taken . | . . . Unknown Exits Taken 2 | 1 1 . Scrap Searched . | . . . Spaces Dug 2 | . 2 . Terrain Destroyed 2 | . 2 . Melee . | . . . Projectile 2 | . 2 . AOE . | . . . Terrain Rammed . | . . . Walls Destroyed . | . . . Machines Disabled . | . . . Actions | -11 -10 -10 --------- Run | Yrd Mat Sub Total 1125 | 83 811 231 Wait 403 | . 217 186 Move 581 | 58 494 29 Hop . | . . . Pick Up 26 | 11 15 . Fast Attach . | . . . Attach 16 | 7 8 1 Detach . | . . . Swap 9 | . 9 . Drop 10 | . 10 . Fire 80 | 7 58 15 Melee . | . . . Ram . | . . . Kick . | . . . Crush . | . . . Escape Stasis . | . . . Rewire . | . . . Trap . | . . . Miscellaneous . | . . . Route ------- -11/Scrapyard -10/Materials (discovered 3 exits: [*Mat x2] / [*Sub]) -10/Subcaves History --------- Turn | Location | Event 18 | -11/Scrapyard | Discovered new exit (range 16) 90 | -11/Scrapyard | Entered Materials 303 | -10/Materials | Discovered new exit (range 15) 316 | -10/Materials | Build established: Mutant 424 | -10/Materials | Discovered new exit (range 10) 682 | -10/Materials | Discovered new exit (range 13) 925 | -10/Materials | Core integrity fell below 50% 989 | -10/Materials | Lost 3 parts (2n1u) 996 | -10/Materials | Entered Subcaves 1227 | -10/Subcaves | Core integrity fell below 20% 1266 | -10/Subcaves | Destroyed by 45-6NO(R) with Subdweller Laser Last Messages --------------- Structural Scanner destroyed. R-06 Scavenger collects Med. Matter Pod. Wheel destroyed. R-06 Scavenger collects Heat Sink. G-34 Mercenary destroyed. Switching to secondary target: G-34 Mercenary. G-34 Mercenary destroyed. Acquired 42 matter. Wheel destroyed. G-34 Mercenary destroyed. LOCATION=UNKNOWN AMBIENT_HEAT=-10 GOAL=ESCAPE Imp. Terrain Scanner destroyed. G3-N8L(R) suffers critical hit (Destroy). Lgt. Assault Rifle destroyed. Ion Engine destroyed. G3-N8L(R) destroyed. 45-6NO(R) affixes Scrap Shield Fragment to Scrap Shield. Map ----- +----------------------------------------------------+ | ???????????????????????????????????????????????? | | ???????????????????????????????????????????????? | | ???????????????????????????????????????????????? | | ???????????????????????????????????????????????? | | ???????????????????????????????????????????????? | | ???????????????????????????????????????????????? | | ???????????????????????????????????????????????? | | ???????????????????????????????????????????????? | | ??????????????????????????#????????????????????? | | ???????????????????????????#???????????????????? | | ??????????????????????????????#??##?#??????????? | | ?????????????????????????#?????#???????????????? | | ???????????????????? ????#???#?#?????#?????????? | | ????????????????????? ??????# # #?????##???????? | | ???????????????????? ????? #????###?#??????? | | ?????????????????????? ?? ? #???????????????? | | ????????????#???#???????#???# ????#??##?##???? | | ???????????????#??# ? ??#?#? ##??????????????? | | ??????????? ???##?????????#?# #?#???#??#?#???? | | ??????????????#??????? ? ?#?# ##?????????##??? | | ???????????????????### ????? #??#???##?????? | | ????????????????#?????#? ??## #?????????????? | | ?????????????? ???? ? #???## #?#?#???????#??? | | ?????????????#?????? ?#??## #?#??#?#?#?##???? | | ?????????????????#?????#### ##??##?????#????? | | ?????????????? ????????# @ #??????##??????? | | ???????????????? ??????## ! #######?????#??? | | ?????????????????????#??# &%! #????#?##???#??? | | ?????????????? ?? ?#???# #R[ ##?#????????????? | | ??????????????????????#?### ##?#??#?????????? | | ????????????????? ? ????## ##???#???#?#?#???? | | ???????????????? ? ???#??# #???#??#?#??????? | | ??????????????????????? ??## ""#??#????????#???? | | ????????????????????? ?? ?# "" #???????#???????? | | ??????????????????#???????## ##???###?????????? | | ????????????????????? ????# #???????#???????? | | ?????????????????????? ???# ###???#??????????? | | ????????????????????????### ##?#????????????? | | ????????????????????????# """ #??????????????? | | ????????????????????? "" """""""#??#????#??????? | | ????????????????????? "" "##"""#?????????????? | | ????????????????????? # ##?#""##?????????????? | | ??????????????#?????""####???" "#??????????????? | | ??????????????????? "????????""""???#??????????? | | ????????????????????????????? "???????????????? | | ?????????????????????? ?????""""???????????????? | | ???????????????????????????????????????????????? | | ???????????????????????????????????????????????? | | ?????????????????????#?????????????????????????? | | ???????????????????????????????????????????????? | +----------------------------------------------------+ Best States ------------- Heat Dissipation 25 Energy Generation 10 Energy Capacity 250 Matter Stores 300 Matter Capacity 300 Sight Range 16 Terrain Scan Range 16 Terrain Scan Density 10 Evasion (%) 50 Recoil Reduction 2 Item Schematics ----------------- None Robot Schematics ------------------ None Fabricated ------------ Nothing Alien Tech Used ----------------- None Achievements -------------- None Challenges ------------ None Game ------ Seed BiocellHybridJammer Manual? 0 Play Time 00:24:45 Cumulative 9.3 hours Start 2024.04.13 @ 17:26:30 End 2024.04.13 @ 17:53:01 Sessions 1 Manual Loads 0 Difficulty Rogue Special Mode None Game No. 10 Rogue 10 Adventurer 0 Explorer 0 Win Type - Total 0 Types 0/0/0/0/0/0/0/0/0 Lore% 11 Gallery% 10 Achievement% 100 Wizard Run 0 Options --------- Layout 1 ASCII 0 Keyboard 0 Movement Numpad Keybinds 0 Fullscreen 1 Font 24/Smallcaps Map View 50x35 Zoom Use 0% Tactical HUD 0 Map Filters NONE Filters NONE Steam 1 RUN: b9bd295a-b964-40e2-a399-35c7873be139